[Event "106th British-ch Major 2019"]
[Site "Torquay"]
[Date "2019.07.29"]
[Round "3.11"]
[White "Cocks, Elliot"]
[Black "Lentzos, Ioannis"]
[Result "0-1"]
[ECO "D24"]
[WhiteElo "1907"]
[BlackElo "2043"]
[Annotator "NA"]
[PlyCount "98"]
[EventDate "2019.07.27"]
[EventType "swiss"]
[EventCountry "GBR"]
[SourceTitle "playchess.com"]
[Source "ChessBase"]
[SourceQuality "1"]
[TimeControl "40/5400+30:1800+30"]

1. Nf3 {[%emt 0:00:00]} Nf6 {[%emt 0:00:00]} 2. c4 {[%emt 0:00:00]} e6 {[%emt 0:00:00]} 3. Nc3 {[%emt 0:00:58]} d5 {[%emt 0:00:00]} 4. d4 {[%emt 0:00:40]} dxc4 {[%emt 0:00:12]} 5. e4 {[%emt 0:01:23]} Bb4 {[%emt 0:00:11]} 6. Bxc4 {[%emt 0:04:30]} Nxe4 {[%emt 0:00:28]} 7. O-O {[%emt 0:00:08]} Nxc3 {[%emt 0:00:04]} 8. bxc3 {[%emt 0:00:05]} Be7 {[%emt 0:00:04]} 9. Ne5 {[%emt 0:01:40]} O-O {[%emt 0:03:59]} 10. Qh5 {[%emt 0:02:59]} Nc6 {[%emt 0:15:54]} 11. Nxc6 {[%emt 0:04:15]} bxc6 {[%emt 0:00:06]} 12. Rb1 {[%emt 0:01:31]} a5 {[%emt 0:19:01]} 13. Qf3 {[%emt 0:10:34]} Bd7 {[%emt 0:09:33]} 14. Bf4 {[%emt 0:04:57]} Bd6 {[%emt 0:10:36]} 15. Be5 {[%emt 0:05:54]} Qg5 {[%emt 0:00:17]} 16. Qe2 {[%emt 0:04:05]} c5 {[%emt 0:03:47]} 17. f4 {[%emt 0:05:51]} Qe7 {[%emt 0:00:29]} 18. Qe4 {[%emt 0:06:10]} Rab8 {[%emt 0:07:14]} 19. Bd3 {[%emt 0:03:37]} f5 {[%emt 0:03:03]} 20. Qf3 {[%emt 0:03:53]} Bxe5 {[%emt 0:00:51]} 21. fxe5 {[%emt 0:03:13]} cxd4 {[%emt 0:03:21]} 22. cxd4 {[%emt 0:00:09]} Rb4 {[%emt 0:01:20]} 23. Rbc1 {[%emt 0:02:39]} Qh4 {[%emt 0:05:00]} 24. Rxc7 {[%emt 0:01:08]} Qxd4+ {[%emt 0:00:05]} 25. Kh1 {[%emt 0:00:07]} Bb5 {[%emt 0:03:19]} 26. Qb7 {[%emt 0:01:42]} Qxe5 {[%emt 0:00:16]} 27. Bxb5 {[%emt 0:00:30]} Rxb5 {[%emt 0:00:09]} 28. Rxg7+ {[%emt 0:00:10]} Qxg7 {[%emt 0:00:07]} 29. Qxb5 {[%emt 0:00:07]} Qc3 {[%emt 0:02:14]} 30. h3 {[%emt 0:00:37]} Rd8 {[%emt 0:02:12]} 31. Rf3 {[%emt 0:01:03]} Rd1+ {[%emt 0:01:55]} 32. Kh2 {[%emt 0:01:18]} Qc7+ {[%emt 0:00:46]} 33. Rg3+ {[%emt 0:00:08]} Kf7 {[%emt 0:00:05]} 34. Qb2 {[%emt 0:03:22]} Rh1+ {[%emt 0:03:17]} 35. Kxh1 {[%emt 0:00:07]} Qxg3 {[%emt 0:00:02]} 36. Qb7+ {[%emt 0:01:52]} Kg6 {[%emt 0:00:07]} 37. Qb5 {[%emt 0:00:30]} Qe1+ {[%emt 0:00:29]} 38. Kh2 {[%emt 0:00:07]} Kg5 {[%emt 0:05:07]} 39. a4 {[%emt 0:01:21]} h5 {[%emt 0:00:38]} 40. Qb8 {[%emt 0:01:43]} h4 {[%emt 0:01:58]} 41. Qb3 {[%emt 0:39:05]} Qe5+ {[%emt 0:30:15]} 42. Kg1 {[%emt 0:00:16]} Qe1+ {[%emt 0:00:02]} 43. Kh2 {[%emt 0:00:07]} Qe4 {[%emt 0:00:00]} 44. Qd1 {[%emt 0:00:00]} Qb4 {[%emt 0:00:00]} 45. Qd8+ {[%emt 0:00:00]} Kg6 {[%emt 0:00:00]} 46. Qd7 {[%emt 0:00:00]} Kf6 {[%emt 0:00:00]} 47. Qd8+ {[%emt 0:00:00]} Ke5 {[%emt 0:00:00]} 48. Qh8+ {[%emt 0:00:00]} Kd5 {[%emt 0:00:00]} 49. Qd8+ {[%emt 0:00:00]} Qd6+ {[%emt 0:00:00]} 0-1

[Event "106th British-ch Major 2019"]
[Site "Torquay"]
[Date "2019.07.29"]
[Round "3.12"]
[White "Rice, Chris B"]
[Black "Barton, R Alan"]
[Result "0-1"]
[ECO "A25"]
[WhiteElo "2040"]
[BlackElo "1941"]
[Annotator "NA"]
[PlyCount "156"]
[EventDate "2019.07.27"]
[EventType "swiss"]
[EventCountry "GBR"]
[SourceTitle "playchess.com"]
[Source "ChessBase"]
[SourceQuality "1"]
[TimeControl "40/5400+30:1800+30"]

1. c4 {[%emt 0:03:06]} e5 {[%emt 0:00:05]} 2. g3 {[%emt 0:00:12]} Nc6 {[%emt 0:00:34]} 3. Nc3 {[%emt 0:00:14]} d6 {[%emt 0:02:02]} 4. Bg2 {[%emt 0:00:30]} Be6 {[%emt 0:00:04]} 5. d3 {[%emt 0:00:14]} Qd7 {[%emt 0:01:48]} 6. Nd5 {[%emt 0:00:49]} Nd8 {[%emt 0:02:37]} 7. e4 {[%emt 0:00:22] A25: English Opening vs King's Indian with ...Nc6 but without early d3} c6 {[%emt 0:02:08]} 8. Ne3 {[%emt 0:00:13]} g6 {[%emt 0:04:04]} 9. Ne2 {[%emt 0:03:56]} Bg7 {[%emt 0:02:56]} 10. d4 {[%emt 0:00:26]} Qc7 $146 {[%emt 0:11:45]} ({Predecessor:} 10... exd4 11. Nxd4 Bh3 12. Ndf5 Bxf5 13. exf5 Ne7 14. Bh3 Nxf5 15. O-O Ne6 16. Nxf5 gxf5 17. Bxf5 {1-0 (26) Grischuk,A (2771)-Svidler,P (2722) Moscow 2010}) 11. O-O {[%emt 0:11:08]} Ne7 {[%emt 0:01:21]} 12. b3 {[%emt 0:05:24]} O-O {[%emt 0:02:02]} 13. Ba3 {[%emt 0:10:24]} f5 {[%emt 0:16:34]} 14. d5 {[%emt 0:05:38]} cxd5 {[%emt 0:04:32]} 15. cxd5 {[%emt 0:01:56]} Bd7 {[%emt 0:00:47]} 16. Rc1 {[%emt 0:19:20]} Qb8 {[%emt 0:00:04]} 17. Qc2 {[%emt 0:10:34]} Bb5 {[%emt 0:03:29]} 18. Nc4 {[%emt 0:02:37]} Nf7 {[%emt 0:01:31]} 19. Nc3 {[%emt 0:02:21]} Ba6 {[%emt 0:03:35]} 20. Bb4 {[%emt 0:08:57]} Rc8 {[%emt 0:05:38]} 21. Qd3 {[%emt 0:01:27]} Rc7 {[%emt 0:07:12]} 22. a4 {[%emt 0:00:58]} Qd8 {[%emt 0:06:56]} 23. Nb5 {[%emt 0:00:57]} Bxb5 {[%emt 0:01:41]} 24. axb5 {[%emt 0:00:04]} b6 {[%emt 0:00:39]} 25. Ra1 {[%emt 0:01:25]} Rac8 {[%emt 0:01:08]} 26. Ra2 {[%emt 0:03:08]} Qd7 {[%emt 0:00:26]} 27. Ne3 {[%emt 0:01:21]} f4 {[%emt 0:00:55]} 28. Nc2 {[%emt 0:01:13]} g5 {[%emt 0:02:47]} 29. Rfa1 {[%emt 0:00:45]} g4 {[%emt 0:01:38]} 30. Bf1 {[%emt 0:00:19]} Ng5 {[%emt 0:01:16]} 31. Be2 {[%emt 0:01:49]} h5 {[%emt 0:01:15]} 32. Bd2 {[%emt 0:00:28]} Ng6 {[%emt 0:01:38]} 33. Nb4 {[%emt 0:00:13]} Qf7 {[%emt 0:03:13]} 34. Nc6 {[%emt 0:01:22]} Nh3+ {[%emt 0:00:48]} 35. Kf1 {[%emt 0:00:34]} Rf8 {[%emt 0:02:49]} 36. Be1 {[%emt 0:00:52]} Ra8 {[%emt 0:01:46]} 37. Ra6 {[%emt 0:00:43]} fxg3 {[%emt 0:02:03]} 38. Qxg3 {[%emt 0:01:08]} Rb7 {[%emt 0:00:31]} 39. Bd1 {[%emt 0:00:36]} Bh6 {[%emt 0:00:28]} 40. R1a2 {[%emt 0:00:16]} Bf4 {[%emt 0:01:03]} 41. Qc3 {[%emt 0:13:27]} Ng5 {[%emt 0:03:14]} 42. f3 {[%emt 0:02:24]} Nxe4 {[%emt 0:02:59]} 43. Qc4 {[%emt 0:01:51]} Nf6 {[%emt 0:05:17]} 44. fxg4 {[%emt 0:09:18]} hxg4 {[%emt 0:01:54]} 45. Kg1 {[%emt 0:00:57]} Be3+ {[%emt 0:02:03]} 46. Bf2 {[%emt 0:00:26]} Bxf2+ {[%emt 0:01:02]} 47. Rxf2 {[%emt 0:00:09]} Nf4 {[%emt 0:00:51]} 48. Rxf4 {[%emt 0:01:23]} exf4 {[%emt 0:00:18]} 49. Qxf4 {[%emt 0:00:08]} Re8 {[%emt 0:03:56]} 50. Bxg4 {[%emt 0:03:22]} Nxg4 {[%emt 0:00:41]} 51. Qxg4+ {[%emt 0:00:08]} Qg7 {[%emt 0:00:35]} 52. Qxg7+ {[%emt 0:00:53]} Rxg7+ {[%emt 0:00:06]} 53. Kf2 {[%emt 0:00:22]} Rf7+ {[%emt 0:01:20]} 54. Kg3 {[%emt 0:01:19]} Re3+ {[%emt 0:00:37]} 55. Kg4 {[%emt 0:00:26]} Rxb3 {[%emt 0:00:43]} 56. Rxa7 {[%emt 0:00:44]} Rxb5 {[%emt 0:01:34]} 57. Ne7+ {[%emt 0:00:43]} Kf8 {[%emt 0:01:36]} 58. Ng6+ {[%emt 0:00:27]} Kg7 {[%emt 0:00:06]} 59. Rxf7+ {[%emt 0:00:06]} Kxf7 {[%emt 0:00:37]} 60. Nf4 {[%emt 0:00:09]} Kf6 {[%emt 0:01:36]} 61. h4 {[%emt 0:00:22]} Rb4 {[%emt 0:01:12]} 62. Kf3 {[%emt 0:00:37]} b5 {[%emt 0:01:05]} 63. Ke3 {[%emt 0:00:37]} Kf5 {[%emt 0:01:03]} 64. Ng2 {[%emt 0:00:32]} Kg4 {[%emt 0:02:07]} 65. Kd3 {[%emt 0:01:23]} Kf3 {[%emt 0:03:43]} 66. Ne1+ {[%emt 0:00:36]} Kf2 {[%emt 0:00:23]} 67. Nc2 {[%emt 0:00:28]} Rxh4 {[%emt 0:00:08]} 68. Nd4 {[%emt 0:00:49] [#]} Rxd4+ $1 {[%emt 0:01:31]} 69. Kxd4 {[%emt 0:00:05]} Kf3 {[%emt 0:01:22]} 70. Kd3 {[%emt 0:00:58]} Kf4 {[%emt 0:00:20]} 71. Kd4 {[%emt 0:00:04]} Kf5 {[%emt 0:00:42]} 72. Kc3 {[%emt 0:00:11]} Ke4 {[%emt 0:00:41]} 73. Kb4 {[%emt 0:00:04]} Kxd5 {[%emt 0:00:09]} 74. Kxb5 {[%emt 0:00:03]} Kd4 {[%emt 0:01:01]} 75. Kb4 {[%emt 0:00:05]} d5 {[%emt 0:00:41]} 76. Kb3 {[%emt 0:00:07]} Kd3 {[%emt 0:00:14]} 77. Kb2 {[%emt 0:00:16]} d4 {[%emt 0:00:38]} 78. Kc1 {[%emt 0:00:19]} Ke2 {[%emt 0:01:14]} 0-1

[Event "106th British-ch Major 2019"]
[Site "Torquay"]
[Date "2019.07.29"]
[Round "3.14"]
[White "Price, Gwilym T"]
[Black "Roy, Ali"]
[Result "1-0"]
[ECO "C07"]
[WhiteElo "2138"]
[BlackElo "1871"]
[Annotator "NA"]
[PlyCount "47"]
[EventDate "2019.07.27"]
[EventType "swiss"]
[EventCountry "GBR"]
[SourceTitle "playchess.com"]
[Source "ChessBase"]
[SourceQuality "1"]
[TimeControl "40/5400+30:1800+30"]

1. e4 {[%emt 0:00:00]} e6 {[%emt 0:00:00]} 2. d4 {[%emt 0:00:00]} d5 {[%emt 0:00:00]} 3. Nd2 {[%emt 0:00:00]} c5 {[%emt 0:00:00]} 4. Ngf3 {[%emt 0:00:00]} cxd4 {[%emt 0:00:11]} 5. exd5 {[%emt 0:00:00]} Qxd5 {[%emt 0:00:19]} 6. Bc4 {[%emt 0:00:00]} Qd6 {[%emt 0:00:17]} 7. O-O {[%emt 0:00:00]} Nf6 {[%emt 0:00:19]} 8. Nb3 {[%emt 0:00:08]} Nc6 {[%emt 0:00:18]} 9. Nbxd4 {[%emt 0:00:06]} Nxd4 {[%emt 0:00:12]} 10. Nxd4 {[%emt 0:00:06]} a6 {[%emt 0:00:26]} 11. Re1 {[%emt 0:00:30]} Qc7 {[%emt 0:00:36]} 12. Qe2 {[%emt 0:00:47]} Bd6 {[%emt 0:04:43]} 13. Bg5 {[%emt 0:01:12]} b5 {[%emt 0:20:10]} 14. Bd3 {[%emt 0:21:38]} Bxh2+ {[%emt 0:13:18]} 15. Kh1 {[%emt 0:06:12]} Bd6 {[%emt 0:06:38]} 16. Nf5 {[%emt 0:07:39]} Be7 {[%emt 0:19:56]} 17. Nxg7+ {[%emt 0:03:33]} Kd8 {[%emt 0:01:21]} 18. Rad1 {[%emt 0:05:45]} Nd7 {[%emt 0:10:41]} 19. Nxe6+ {[%emt 0:07:23]} fxe6 {[%emt 0:00:11]} 20. Bxe7+ {[%emt 0:00:05]} Ke8 {[%emt 0:01:41]} 21. Qxe6 {[%emt 0:00:28]} Nc5 {[%emt 0:01:39]} 22. Qf6 {[%emt 0:01:00]} Ne6 {[%emt 0:01:59]} 23. Qxh8+ {[%emt 0:00:35]} Kxe7 {[%emt 0:00:08]} 24. Qxh7+ {[%emt 0:00:10]} 1-0

[Event "106th British-ch Major 2019"]
[Site "Torquay"]
[Date "2019.07.29"]
[Round "3.15"]
[White "Cleary, Mark"]
[Black "Camp, Imogen Al"]
[Result "1-0"]
[ECO "A03"]
[WhiteElo "2023"]
[BlackElo "1850"]
[Annotator "NA"]
[PlyCount "61"]
[EventDate "2019.07.27"]
[EventType "swiss"]
[EventCountry "GBR"]
[SourceTitle "playchess.com"]
[Source "ChessBase"]
[SourceQuality "1"]
[TimeControl "40/5400+30:1800+30"]

1. f4 {[%emt 0:00:00]} Nf6 {[%emt 0:00:00]} 2. Nf3 {[%emt 0:00:00]} d5 {[%emt 0:00:05]} 3. g3 {[%emt 0:00:00]} e6 {[%emt 0:01:17]} 4. Bg2 {[%emt 0:00:00]} b6 {[%emt 0:00:18]} 5. O-O {[%emt 0:02:16]} Bb7 {[%emt 0:00:17]} 6. d3 {[%emt 0:02:26]} Be7 {[%emt 0:01:40]} 7. Ne5 {[%emt 0:11:33]} c5 {[%emt 0:02:09]} 8. Nc3 {[%emt 0:01:57]} Nc6 {[%emt 0:02:34]} 9. e4 {[%emt 0:04:27]} d4 {[%emt 0:03:21]} 10. Nxc6 {[%emt 0:02:41]} Bxc6 {[%emt 0:00:06]} 11. Nb1 {[%emt 0:00:09]} h5 {[%emt 0:05:55]} 12. h3 {[%emt 0:02:11]} Qc7 {[%emt 0:01:57]} 13. Nd2 {[%emt 0:04:48]} Nd7 {[%emt 0:08:45]} 14. a4 {[%emt 0:03:50]} g5 {[%emt 0:05:07]} 15. Nc4 {[%emt 0:04:46]} gxf4 {[%emt 0:14:41]} 16. Bxf4 {[%emt 0:02:39]} e5 {[%emt 0:06:02]} 17. Bd2 {[%emt 0:00:35]} f6 {[%emt 0:06:38]} 18. h4 {[%emt 0:02:08]} O-O-O {[%emt 0:02:40]} 19. Rf5 {[%emt 0:02:44]} Rdg8 {[%emt 0:02:28]} 20. Kh2 {[%emt 0:04:04]} Nf8 {[%emt 0:04:10]} 21. Rxh5 {[%emt 0:03:29]} Bd7 {[%emt 0:05:38]} 22. Bh3 {[%emt 0:04:53]} Bxh3 {[%emt 0:06:16]} 23. Rxh8 {[%emt 0:09:28]} Rxh8 {[%emt 0:02:14]} 24. Kxh3 {[%emt 0:00:08]} Rg8 {[%emt 0:08:26]} 25. Qf3 {[%emt 0:00:34]} Kb7 {[%emt 0:01:36]} 26. Qf5 {[%emt 0:01:49]} Bd8 {[%emt 0:00:17]} 27. a5 {[%emt 0:04:27]} Qg7 {[%emt 0:03:08]} 28. g4 {[%emt 0:01:16]} Ng6 {[%emt 0:01:07]} 29. Qe6 {[%emt 0:02:48]} Nxh4 {[%emt 0:03:25]} 30. Nd6+ {[%emt 0:00:29]} Kb8 {[%emt 0:00:23]} 31. Qc8# {[%emt 0:00:14]} 1-0

[Event "106th British-ch Major 2019"]
[Site "Torquay"]
[Date "2019.07.29"]
[Round "3.16"]
[White "Whitehead, Mark A"]
[Black "Menadue, Jeremy Fs"]
[Result "0-1"]
[ECO "B24"]
[WhiteElo "1887"]
[BlackElo "2016"]
[Annotator "NA"]
[PlyCount "54"]
[EventDate "2019.07.27"]
[EventType "swiss"]
[EventCountry "GBR"]
[SourceTitle "playchess.com"]
[Source "ChessBase"]
[SourceQuality "1"]
[TimeControl "40/5400+30:1800+30"]

1. e4 {[%emt 1:12:46]} c5 {[%emt 0:00:17]} 2. Nc3 {[%emt 0:01:02]} Nc6 {[%emt 0:00:31]} 3. g3 {[%emt 0:01:10]} g6 {[%emt 0:00:22]} 4. Bg2 {[%emt 0:00:23]} Bg7 {[%emt 0:03:47]} 5. d3 {[%emt 0:00:25]} Rb8 {[%emt 0:00:39]} 6. Nh3 {[%emt 0:09:17]} b5 {[%emt 0:03:47]} 7. O-O {[%emt 0:06:51]} e6 {[%emt 0:01:54]} 8. a3 {[%emt 0:08:42]} Nge7 {[%emt 0:02:33]} 9. Rb1 {[%emt 0:02:30]} O-O {[%emt 0:01:51]} 10. Be3 {[%emt 0:02:37]} b4 {[%emt 0:09:18]} 11. axb4 {[%emt 0:05:57]} cxb4 {[%emt 0:00:07]} 12. Ne2 {[%emt 0:00:25]} d5 {[%emt 0:11:27]} 13. exd5 {[%emt 0:03:47]} Nxd5 {[%emt 0:05:57]} 14. Bc5 {[%emt 0:00:33]} Re8 {[%emt 0:07:29]} 15. c4 {[%emt 0:12:16]} bxc3 {[%emt 0:10:58]} 16. bxc3 {[%emt 0:00:44]} Rxb1 {[%emt 0:00:22]} 17. Qxb1 {[%emt 0:00:08]} Qa5 {[%emt 0:02:14]} 18. c4 {[%emt 0:04:02]} Qxc5 {[%emt 0:02:52]} 19. cxd5 {[%emt 0:00:07]} exd5 {[%emt 0:00:13]} 20. Rc1 {[%emt 0:00:25]} Qd6 {[%emt 0:01:31]} 21. Nef4 {[%emt 0:02:14]} Nd4 {[%emt 0:04:15]} 22. Qa2 {[%emt 0:01:38]} Bxh3 {[%emt 0:00:58]} 23. Bxd5 {[%emt 0:02:53]} Be6 {[%emt 0:01:14]} 24. Bxe6 {[%emt 0:02:12]} Nxe6 {[%emt 0:04:04]} 25. Nxe6 {[%emt 0:00:07]} Qxe6 {[%emt 0:05:15]} 26. Qxa7 {[%emt 0:00:08]} h5 {[%emt 0:00:03]} 27. Rc7 {[%emt 0:02:15]} Rd8 {[%emt 0:01:12]} 0-1

[Event "106th British-ch Major 2019"]
[Site "Torquay"]
[Date "2019.07.29"]
[Round "3.17"]
[White "Akeya-Price, Robert A"]
[Black "May, Paul"]
[Result "1-0"]
[ECO "A43"]
[WhiteElo "1974"]
[BlackElo "1832"]
[Annotator "NA"]
[PlyCount "67"]
[EventDate "2019.07.27"]
[EventType "swiss"]
[EventCountry "GBR"]
[SourceTitle "playchess.com"]
[Source "ChessBase"]
[SourceQuality "1"]
[TimeControl "40/5400+30:1800+30"]

1. d4 {[%emt 0:00:00]} g6 {[%emt 0:00:00]} 2. c4 {[%emt 0:00:00]} Bg7 {[%emt 0:00:00]} 3. e4 {[%emt 0:00:00]} c5 {[%emt 0:01:24]} 4. d5 {[%emt 0:00:18]} d6 {[%emt 0:00:43]} 5. Nc3 {[%emt 0:00:36]} Nd7 {[%emt 0:07:11]} 6. Nge2 {[%emt 0:04:14]} Ngf6 {[%emt 0:00:37]} 7. Bd2 {[%emt 0:03:39]} O-O {[%emt 0:00:21]} 8. Qc2 {[%emt 0:00:44]} Nb6 {[%emt 0:04:59]} 9. Ng3 {[%emt 0:01:30]} Ng4 {[%emt 0:06:02]} 10. h3 {[%emt 0:05:12]} Ne5 {[%emt 0:01:28]} 11. b3 {[%emt 0:02:31]} e6 {[%emt 0:12:38]} 12. f4 {[%emt 0:02:11]} Ned7 {[%emt 0:00:13]} 13. O-O-O {[%emt 0:00:48]} e5 {[%emt 0:05:27]} 14. f5 {[%emt 0:02:29]} Qh4 {[%emt 0:04:51]} 15. Nge2 {[%emt 0:03:55]} Bh6 {[%emt 0:17:57]} 16. g3 {[%emt 0:02:20]} Bxd2+ {[%emt 0:01:02]} 17. Qxd2 {[%emt 0:00:07]} Qf6 {[%emt 0:00:16]} 18. g4 {[%emt 0:00:55]} h6 {[%emt 0:04:00]} 19. Qxh6 {[%emt 0:03:23]} g5 {[%emt 0:00:53]} 20. Qh5 {[%emt 0:03:41]} Kg7 {[%emt 0:00:41]} 21. h4 {[%emt 0:00:29]} Rh8 {[%emt 0:03:51]} 22. Qxh8+ {[%emt 0:00:33]} Kxh8 {[%emt 0:01:34]} 23. hxg5+ {[%emt 0:00:02]} Kg7 {[%emt 0:00:20]} 24. gxf6+ {[%emt 0:00:03]} Nxf6 {[%emt 0:01:17]} 25. Rh4 {[%emt 0:00:54]} Bd7 {[%emt 0:02:47]} 26. g5 {[%emt 0:00:08]} Nh7 {[%emt 0:00:34]} 27. f6+ {[%emt 0:00:44]} Kg8 {[%emt 0:00:13]} 28. Bh3 {[%emt 0:00:10]} Nf8 {[%emt 0:01:23]} 29. Bxd7 {[%emt 0:00:11]} Ng6 {[%emt 0:01:33]} 30. Rh6 {[%emt 0:00:15]} Nxd7 {[%emt 0:00:17]} 31. Nb5 {[%emt 0:00:34]} b6 {[%emt 0:02:21]} 32. Nxd6 {[%emt 0:00:11]} Ndf8 {[%emt 0:01:09]} 33. Nf5 {[%emt 0:00:12]} Nh7 {[%emt 0:02:47]} 34. Ne7+ {[%emt 0:00:32]} 1-0

[Event "106th British-ch Major 2019"]
[Site "Torquay"]
[Date "2019.07.29"]
[Round "3.18"]
[White "Rathbone-Jones, Ifan"]
[Black "Cusick, Peter W"]
[Result "1/2-1/2"]
[ECO "E21"]
[WhiteElo "1855"]
[BlackElo "1971"]
[Annotator "NA"]
[PlyCount "50"]
[EventDate "2019.07.27"]
[EventType "swiss"]
[EventCountry "GBR"]
[SourceTitle "playchess.com"]
[Source "ChessBase"]
[SourceQuality "1"]
[TimeControl "40/5400+30:1800+30"]

1. d4 {[%emt 0:00:00]} Nf6 {[%emt 0:00:00]} 2. c4 {[%emt 0:00:00]} e6 {[%emt 0:00:00]} 3. Nc3 {[%emt 0:00:00]} Bb4 {[%emt 0:00:00]} 4. Nf3 {[%emt 0:00:01]} Ne4 {[%emt 0:02:57]} 5. Qc2 {[%emt 0:00:09]} f5 {[%emt 0:01:22]} 6. Bd2 {[%emt 0:03:00]} Nxd2 {[%emt 0:01:23]} 7. Nxd2 {[%emt 0:00:49]} O-O {[%emt 0:01:06]} 8. g3 {[%emt 0:01:51]} Nc6 {[%emt 0:09:17]} 9. e3 {[%emt 0:01:07]} b6 {[%emt 0:13:11]} 10. Bg2 {[%emt 0:00:17]} Bb7 {[%emt 0:00:36]} 11. O-O {[%emt 0:00:24]} Na5 {[%emt 0:08:41]} 12. d5 {[%emt 0:08:48]} c6 {[%emt 0:08:53]} 13. a3 {[%emt 0:00:17]} Bxc3 {[%emt 0:02:44]} 14. Qxc3 {[%emt 0:00:12]} cxd5 {[%emt 0:03:49]} 15. b4 {[%emt 0:00:06]} Nxc4 {[%emt 0:05:56]} 16. Nxc4 {[%emt 0:00:07]} Rc8 {[%emt 0:00:16]} 17. Rfc1 {[%emt 0:04:16]} Rxc4 {[%emt 0:01:24]} 18. Qb2 {[%emt 0:02:08]} Qb8 {[%emt 0:01:46]} 19. Bf1 {[%emt 0:01:06]} Rxc1 {[%emt 0:00:47]} 20. Rxc1 {[%emt 0:00:29]} Rc8 {[%emt 0:00:25]} 21. Rxc8+ {[%emt 0:00:59]} Qxc8 {[%emt 0:00:13]} 22. Qe5 {[%emt 0:00:14]} Qc6 {[%emt 0:01:27]} 23. Qb8+ {[%emt 0:01:32]} Kf7 {[%emt 0:01:11]} 24. b5 {[%emt 0:00:07]} Qc8 {[%emt 0:01:46]} 25. Qxa7 {[%emt 0:00:39]} Qc7 {[%emt 0:01:06]} 1/2-1/2

[Event "106th British-ch Major 2019"]
[Site "Torquay"]
[Date "2019.07.29"]
[Round "3.19"]
[White "Young, Daniel J"]
[Black "Ward, Andy"]
[Result "0-1"]
[ECO "C18"]
[WhiteElo "1971"]
[BlackElo "1822"]
[Annotator "NA"]
[PlyCount "68"]
[EventDate "2019.07.27"]
[EventType "swiss"]
[EventCountry "GBR"]
[SourceTitle "playchess.com"]
[Source "ChessBase"]
[SourceQuality "1"]
[TimeControl "40/5400+30:1800+30"]

1. e4 {[%emt 0:00:00]} e6 {[%emt 0:00:00]} 2. d4 {[%emt 0:00:00]} d5 {[%emt 0:00:00]} 3. Nc3 {[%emt 0:00:00]} Bb4 {[%emt 0:00:00]} 4. e5 {[%emt 0:00:00]} c5 {[%emt 0:00:00]} 5. a3 {[%emt 0:00:10]} Bxc3+ {[%emt 0:00:00]} 6. bxc3 {[%emt 0:00:06]} Ne7 {[%emt 0:00:05]} 7. Qg4 {[%emt 0:00:09]} Qc7 {[%emt 0:00:07]} 8. Bd3 {[%emt 0:00:10]} cxd4 {[%emt 0:00:09]} 9. Ne2 {[%emt 0:00:10]} dxc3 {[%emt 0:00:08]} 10. Qxg7 {[%emt 0:00:15]} Rg8 {[%emt 0:00:05]} 11. Qxh7 {[%emt 0:00:08]} Qxe5 {[%emt 0:00:06]} 12. h4 {[%emt 0:00:22]} Nd7 {[%emt 0:00:31]} 13. Bf4 {[%emt 0:00:11]} Qf6 {[%emt 0:00:08]} 14. Bg5 {[%emt 0:00:11]} Qh8 {[%emt 0:00:08]} 15. Qxh8 {[%emt 0:00:07]} Rxh8 {[%emt 0:00:06]} 16. Nxc3 {[%emt 0:00:07]} a6 {[%emt 0:00:05]} 17. O-O-O {[%emt 0:01:43]} f6 {[%emt 0:00:18]} 18. Be3 {[%emt 0:00:16]} b5 {[%emt 0:00:12]} 19. f4 {[%emt 0:06:05]} Bb7 {[%emt 0:01:46]} 20. Rh2 {[%emt 0:05:42]} Kf7 {[%emt 0:02:09]} 21. g4 {[%emt 0:02:59]} Rac8 {[%emt 0:02:40]} 22. Kb2 {[%emt 0:03:49]} Nc5 {[%emt 0:02:16]} 23. Be2 {[%emt 0:05:49]} Rc7 {[%emt 0:05:47]} 24. h5 {[%emt 0:09:19]} Rhc8 {[%emt 0:03:38]} 25. Rd2 {[%emt 0:17:28]} Ne4 {[%emt 0:05:20]} 26. Nxe4 {[%emt 0:03:08]} dxe4 {[%emt 0:00:02]} 27. Bb6 {[%emt 0:01:25]} Rc6 {[%emt 0:09:28]} 28. Bd4 {[%emt 0:00:22]} Nd5 {[%emt 0:00:16]} 29. g5 {[%emt 0:04:21]} e3 {[%emt 0:02:23]} 30. Bxe3 {[%emt 0:01:28]} Nxe3 {[%emt 0:00:23]} 31. Rd7+ {[%emt 0:00:02]} Ke8 {[%emt 0:00:56]} 32. Rxb7 {[%emt 0:00:54]} Rxc2+ {[%emt 0:00:07]} 33. Kb3 {[%emt 0:11:29]} R8c3+ {[%emt 0:00:15]} 34. Kb4 {[%emt 0:00:01]} Nd5+ {[%emt 0:00:10]} 0-1

[Event "106th British-ch Major 2019"]
[Site "Torquay"]
[Date "2019.07.29"]
[Round "3.20"]
[White "Forster, Matthew"]
[Black "Warren, Alex M"]
[Result "1/2-1/2"]
[ECO "A25"]
[WhiteElo "1825"]
[BlackElo "1967"]
[Annotator "NA"]
[PlyCount "80"]
[EventDate "2019.07.27"]
[EventType "swiss"]
[EventCountry "GBR"]
[SourceTitle "playchess.com"]
[Source "ChessBase"]
[SourceQuality "1"]
[TimeControl "40/5400+30:1800+30"]

1. c4 {[%emt 0:00:00]} g6 {[%emt 0:00:13]} 2. g3 {[%emt 0:00:00]} Bg7 {[%emt 0:00:18]} 3. Bg2 {[%emt 0:00:00]} Nf6 {[%emt 0:00:22]} 4. Nc3 {[%emt 0:00:00]} d6 {[%emt 0:00:19]} 5. e3 {[%emt 0:00:49]} e5 {[%emt 0:02:01]} 6. Nge2 {[%emt 0:00:10]} O-O {[%emt 0:05:14]} 7. O-O {[%emt 0:01:04]} Nc6 {[%emt 0:07:15]} 8. a3 {[%emt 0:00:52]} a5 {[%emt 0:00:50]} 9. Rb1 {[%emt 0:00:16]} Bf5 {[%emt 0:02:54]} 10. d3 {[%emt 0:00:31]} Qc8 {[%emt 0:04:19]} 11. Re1 {[%emt 0:04:04]} Re8 {[%emt 0:06:07]} 12. b4 {[%emt 0:05:07]} axb4 {[%emt 0:02:52]} 13. axb4 {[%emt 0:00:12]} e4 {[%emt 0:03:38]} 14. d4 {[%emt 0:00:53]} Bh3 {[%emt 0:05:52]} 15. Bh1 {[%emt 0:02:07]} Bg4 {[%emt 0:13:05]} 16. Qc2 {[%emt 0:09:25]} Bf3 {[%emt 0:09:06]} 17. Nf4 {[%emt 0:06:01]} Bxh1 {[%emt 0:12:07]} 18. Kxh1 {[%emt 0:00:17]} Qg4 {[%emt 0:02:23]} 19. Ncd5 {[%emt 0:02:10]} Rac8 {[%emt 0:00:56]} 20. Qe2 {[%emt 0:01:52]} Qf5 {[%emt 0:00:40]} 21. Bd2 {[%emt 0:03:56]} Ne7 {[%emt 0:01:22]} 22. Nxe7+ {[%emt 0:01:50]} Rxe7 {[%emt 0:00:00]} 23. Ra1 {[%emt 0:01:13]} h5 {[%emt 0:01:54]} 24. Ra5 {[%emt 0:02:59]} Qd7 {[%emt 0:01:03]} 25. Rea1 {[%emt 0:03:39]} h4 {[%emt 0:01:24]} 26. gxh4 {[%emt 0:04:13]} Bh6 {[%emt 0:01:28]} 27. Rg1 {[%emt 0:00:46]} b6 {[%emt 0:02:38]} 28. Nd5 {[%emt 0:04:39]} Nxd5 {[%emt 0:02:04]} 29. Rxd5 {[%emt 0:00:02]} c6 {[%emt 0:01:22]} 30. Rh5 {[%emt 0:04:12]} Kh7 {[%emt 0:00:38]} 31. Rxh6+ {[%emt 0:02:09]} Kxh6 {[%emt 0:00:05]} 32. Rg3 {[%emt 0:00:35]} Ra8 {[%emt 0:01:14]} 33. d5 {[%emt 0:03:44]} cxd5 {[%emt 0:01:14]} 34. cxd5 {[%emt 0:00:06]} Qf5 {[%emt 0:01:22]} 35. Kg2 {[%emt 0:00:50]} Ra2 {[%emt 0:01:09]} 36. h5 {[%emt 0:01:58]} Rc7 {[%emt 0:03:23]} 37. hxg6 {[%emt 0:00:55]} fxg6 {[%emt 0:00:11]} 38. Rh3+ {[%emt 0:00:34]} Kg5 {[%emt 0:02:55]} 39. Rg3+ {[%emt 0:16:15]} Kh6 {[%emt 0:00:04]} 40. Rh3+ {[%emt 0:00:09]} Kg5 {[%emt 0:00:04]} 1/2-1/2